bitfinex/quotes_BTCUSD_20240611
["timestamp","ask_amount","ask_price","bid_price","bid_amount"]
[1718100272324,0.09607688,66768.0,66767.0,0.149773]
[1718100272545,0.09607688,66771.0,66767.0,0.14431993]
[1718100272785,0.04910011,66779.0,66768.0,0.20561192]
[1718100272993,0.14517699,66779.0,66778.0,0.149749]
[1718100273207,0.31607688,66779.0,66778.0,0.149749]
[1718100273417,0.09607688,66776.0,66768.0,0.20561192]
[1718100273629,0.09607688,66777.0,66776.0,0.149754]
[1718100273850,0.09607688,66777.0,66776.0,0.1647294]
[1718100274069,0.09607688,66780.0,66779.0,0.149747]
[1718100274284,0.31607688,66780.0,66779.0,0.149747]
[1718100274495,0.31607688,66780.0,66779.0,0.14158544]
[1718100274496,0.09607688,66780.0,66779.0,0.14158544]
[1718100275171,0.31607688,66780.0,66779.0,0.14158544]
[1718100275337,0.09607688,66774.0,66772.0,0.149762]
[1718100275558,0.15532114,66773.0,66772.0,0.149762]
[1718100275744,0.15532114,66773.0,66772.0,0.1647382]
[1718100276056,0.09607688,66774.0,66772.0,0.30905813]
[1718100276251,0.09607688,66776.0,66775.0,0.149756]
[1718100276453,0.15533051,66776.0,66775.0,0.14431993]
[1718100276670,0.15533051,66776.0,66775.0,0.31000554]
[1718100276875,0.09607688,66777.0,66776.0,0.149754]
[1718100277039,0.25139368,66777.0,66776.0,0.149754]
[1718100277251,0.25139435,66777.0,66776.0,0.149754]
[1718100278431,0.15531747,66777.0,66776.0,1.75538193]
[1718100278702,0.02203227,66787.0,66777.0,0.299501]
[1718100278878,0.43295979,66803.0,66776.0,1.55043986]
[1718100278879,0.09607688,66795.0,66789.0,0.449175]
[1718100279092,0.02203227,66797.0,66789.0,0.449175]
[1718100279093,0.02203227,66799.0,66789.0,0.59349493]
[1718100279318,0.059891,66800.0,66799.0,0.149702]
[1718100279517,0.43295979,66801.0,66800.0,0.1497]
[1718100279725,0.2,66814.0,66811.0,0.149675]
[1718100279726,0.09607688,66812.0,66811.0,0.149675]
[1718100280233,0.09607688,66813.0,66812.0,0.149673]
[1718100280882,0.29607688,66808.0,66807.0,0.149684]
[1718100281101,0.09607688,66809.0,66807.0,0.0149684]
[1718100281314,0.09607688,66807.0,66800.0,0.14431993]
[1718100281532,0.09607688,66807.0,66798.0,0.04975216]
[1718100281533,0.09607688,66807.0,66805.0,0.149688]
[1718100281705,0.08191627,66813.0,66806.0,0.14431993]
[1718100281957,0.07215996,66812.0,66807.0,0.01443199]
[1718100282168,0.07215996,66812.0,66808.0,0.14431993]
[1718100282612,0.02203227,66819.0,66811.0,0.52391993]
[1718100282840,0.02203227,66826.0,66824.0,0.149646]
[1718100283052,0.15131417,66842.0,66833.0,0.149626]
[1718100283053,0.02203227,66834.0,66833.0,0.149626]
[1718100283494,0.09607688,66841.0,66840.0,0.149611]
[1718100283744,0.00943801,66845.0,66834.0,0.14431993]
[1718100283745,0.09607688,66839.0,66834.0,0.14431993]
[1718100283967,0.00943801,66845.0,66834.0,0.14431993]
[1718100283968,0.09607688,66843.0,66834.0,0.14431993]
[1718100284180,0.07215996,66841.0,66835.0,0.06334199]
[1718100284383,0.07215996,66841.0,66836.0,0.14431993]
[1718100285003,0.09607688,66843.0,66836.0,0.14431993]
[1718100285238,0.00943801,66845.0,66844.0,0.149602]
[1718100285448,0.00943801,66845.0,66844.0,0.29392193]
[1718100285657,0.00943801,66845.0,66844.0,0.32331412]
[1718100286088,0.00943801,66845.0,66844.0,0.149602]
[1718100286318,0.00943801,66845.0,66844.0,0.29392193]
[1718100286554,0.00943801,66845.0,66844.0,0.59312593]
[1718100286992,0.00943801,66845.0,66844.0,0.29392193]
[1718100287440,0.00943801,66845.0,66844.0,1.38064905]
[1718100287675,0.00943801,66845.0,66844.0,1.91791795]
[1718100288357,0.00943801,66845.0,66844.0,1.61479083]
[1718100288570,0.00943801,66845.0,66844.0,1.31558683]
[1718100288949,0.00943801,66845.0,66844.0,1.61479083]
[1718100289146,0.00943801,66845.0,66844.0,1.91399483]
[1718100292263,0.00943801,66845.0,66844.0,1.61479083]
[1718100294531,0.00943801,66845.0,66844.0,1.61483083]
[1718100294757,0.00943801,66845.0,66844.0,1.91403483]
[1718100295807,0.009438,66870.0,66853.0,0.448744]
[1718100295998,0.009438,66870.0,66869.0,0.149546]
[1718100296202,0.07215996,66880.0,66879.0,0.149523]
[1718100296421,0.36823684,66880.0,66879.0,0.149523]
[1718100296641,0.07215996,66880.0,66879.0,0.29384293]
[1718100296883,0.10551489,66883.0,66879.0,0.29384293]
[1718100296884,0.00943801,66883.0,66882.0,0.149517]
[1718100297107,0.00943801,66883.0,66882.0,0.29383693]
[1718100297826,0.00943801,66883.0,66882.0,0.149517]
[1718100298025,0.32551489,66883.0,66882.0,0.149517]
[1718100298679,0.32551489,66883.0,66876.0,0.149528]
[1718100298877,0.22,66873.0,66872.0,0.149539]
[1718100299081,0.22,66873.0,66872.0,0.1482831]
[1718100299284,0.31607688,66873.0,66872.0,0.1482831]
[1718100300043,0.31607688,66873.0,66872.0,0.1483231]
[1718100300264,0.31607688,66873.0,66872.0,4e-05]
[1718100300463,0.2,66862.0,66861.0,0.149563]
[1718100300704,0.2,66862.0,66861.0,0.31382077]
[1718100300972,0.29607688,66866.0,66864.0,0.149557]
[1718100301196,0.29607688,66866.0,66844.0,0.9192069]
[1718100301197,0.31607688,66845.0,66844.0,4e-05]
[1718100301389,1.92999581,66845.0,66844.0,4e-05]
[1718100301600,2.40999581,66845.0,66844.0,4e-05]
[1718100301810,0.31607688,66840.0,66825.0,0.149643]
[1718100302035,0.31607688,66840.0,66831.0,0.04932378]
[1718100302472,0.47039681,66840.0,66831.0,0.04932378]
[1718100302906,1.69512781,66840.0,66806.0,0.149686]
[1718100303106,1.79512781,66840.0,66806.0,0.149686]
[1718100303331,1.79512781,66840.0,66806.0,0.19908372]
[1718100303536,2.01812781,66840.0,66806.0,0.04939772]
[1718100303747,0.48293953,66840.0,66816.0,0.2]
[1718100303953,0.63993953,66840.0,66818.0,0.2]
[1718100304375,0.31131993,66840.0,66824.0,0.2]
[1718100304602,0.31049305,66840.0,66828.0,0.2]
[1718100304824,0.31049305,66840.0,66824.0,0.2]
[1718100305041,0.46093093,66840.0,66824.0,0.04971397]
[1718100305252,0.46093093,66840.0,66839.0,0.20004]
[1718100305506,0.77140192,66840.0,66839.0,0.20004]
[1718100305715,0.61440192,66840.0,66839.0,0.20004]
[1718100305920,0.30393093,66840.0,66839.0,0.20004]
[1718100306128,0.46093093,66840.0,66839.0,0.20004]
[1718100306341,0.46007047,66840.0,66839.0,0.20004]
[1718100306569,0.31045947,66840.0,66839.0,0.20004]
[1718100306770,0.64135947,66840.0,66839.0,0.20004]
[1718100306977,0.7856794,66840.0,66839.0,0.20004]
[1718100307193,0.9426794,66840.0,66839.0,0.20004]
[1718100307413,0.64135947,66840.0,66839.0,0.20004]
[1718100307831,0.3309,66840.0,66839.0,0.20004]
[1718100308036,0.3309,66840.0,66839.0,0.40004]
[1718100308249,0.4975,66845.0,66844.0,0.2]
[1718100308417,0.4975,66845.0,66839.0,0.38536393]
[1718100308418,0.16156988,66870.0,66848.0,0.2]
[1718100308664,0.149568,66860.0,66852.0,0.2]
[1718100308878,0.149571,66858.0,66853.0,0.2]
[1718100309122,0.31039393,66859.0,66856.0,0.2]
[1718100309335,0.5,66866.0,66848.0,0.04962416]
[1718100309336,0.149584,66853.0,66848.0,0.04962416]
[1718100309547,0.31039393,66858.0,66848.0,0.04962416]
[1718100309548,0.22174996,66849.0,66848.0,0.04962416]
[1718100309751,0.31039393,66850.0,66839.0,0.20004]
[1718100309955,0.45471386,66849.0,66839.0,0.20004]
[1718100310164,0.14961,66841.0,66839.0,0.20004]
[1718100310397,0.31039393,66840.0,66839.0,0.20004]
[1718100311666,0.37025793,66840.0,66839.0,0.20004]
[1718100311883,0.37025793,66840.0,66839.0,0.450044]
[1718100312104,0.0917,66860.0,66856.0,0.2]
[1718100312311,0.31040286,66859.0,66856.0,0.2]
[1718100312663,0.31040286,66859.0,66858.0,0.32]
[1718100312825,0.3103,66866.0,66862.0,0.2]
[1718100313040,0.38788919,66865.0,66861.0,0.2]
[1718100313239,0.07757733,66864.0,66861.0,0.2]
[1718100313440,0.38787806,66863.0,66861.0,0.2]
[1718100313645,0.07757733,66862.0,66861.0,0.2]
[1718100313887,0.07757733,66862.0,66861.0,0.22]
[1718100314246,0.13742033,66862.0,66861.0,0.352]
[1718100314441,0.13742033,66862.0,66861.0,0.49631993]
[1718100314661,0.13742033,66862.0,66861.0,0.74588393]
[1718100314857,0.07757733,66862.0,66861.0,1.39781993]
[1718100315070,0.8003,66882.0,66861.0,0.352]
[1718100315071,0.07757733,66881.0,66861.0,0.352]
[1718100315273,0.9573,66882.0,66861.0,0.352]
[1718100315274,0.97677984,66880.0,66864.0,0.2]
[1718100315423,0.157,66878.0,66864.0,0.2]
[1718100315628,0.82461988,66877.0,66864.0,0.2]
[1718100315831,0.82461988,66877.0,66861.0,0.12004]
[1718100315832,0.5,66871.0,66861.0,4e-05]
[1718100316030,0.07915421,66862.0,66861.0,4e-05]
[1718100316239,0.07915421,66862.0,66856.0,0.2]
[1718100316240,0.38783306,66862.0,66856.0,0.2]
[1718100316437,0.38783306,66861.0,66860.0,0.32]
[1718100316638,0.38783306,66861.0,66860.0,0.46431993]
[1718100316987,0.059842,66876.0,66875.0,0.22]
[1718100317263,0.50658472,66876.0,66875.0,0.352]
[1718100317472,0.059842,66876.0,66875.0,0.49631993]
[1718100317676,0.059842,66876.0,66875.0,0.74585193]
[1718100319346,0.059842,66876.0,66875.0,0.59631993]
[1718100319968,0.00943801,66883.0,66882.0,0.1]
[1718100320173,0.00553801,66883.0,66882.0,0.3]
[1718100320789,0.00553801,66883.0,66882.0,0.32]
[1718100321196,0.00553801,66883.0,66882.0,0.42]
[1718100321831,0.00553801,66883.0,66882.0,1.35521993]
[1718100322452,0.00553801,66883.0,66882.0,1.50473693]
[1718100322626,0.00553801,66883.0,66882.0,1.65905686]
[1718100323036,0.00553801,66883.0,66882.0,1.64905686]
[1718100324704,0.00553801,66883.0,66882.0,1.65905686]
[1718100325198,0.43295979,66906.0,66905.0,0.32]
[1718100325643,0.149459,66908.0,66898.0,0.1]
[1718100325846,0.149459,66908.0,66882.0,0.93521993]
[1718100325847,0.07215996,66899.0,66892.0,0.24915175]
[1718100326062,0.07215996,66899.0,66892.0,0.04915175]
[1718100326258,0.07215996,66899.0,66894.0,0.1]
[1718100326503,0.07215996,66899.0,66892.0,0.04915175]
[1718100326652,0.07215996,66899.0,66894.0,0.1]
[1718100326858,0.059813,66898.0,66895.0,0.01491518]
[1718100327062,0.059813,66898.0,66897.0,1.056583]
[1718100327262,0.000946,66909.0,66908.0,0.1]
[1718100327439,0.000946,66909.0,66908.0,0.32]
[1718100327868,0.010395,66909.0,66908.0,0.3]
[1718100328132,0.010395,66909.0,66908.0,0.3769465]
[1718100328366,0.010395,66909.0,66908.0,0.52126643]
[1718100328513,0.010395,66909.0,66908.0,0.67072443]
[1718100328737,0.000946,66909.0,66908.0,1.10332443]
[1718100328943,0.009427,66912.0,66911.0,0.579452]
[1718100329145,0.009427,66912.0,66911.0,1.04025182]
[1718100329388,0.009449,66923.0,66922.0,0.56937944]
[1718100329586,0.009449,66926.0,66925.0,0.56937244]
[1718100329792,0.009449,66926.0,66925.0,0.71369237]
[1718100330100,0.009449,66926.0,66925.0,1.12353993]
[1718100330303,0.009449,66926.0,66925.0,1.23589392]
[1718100330503,0.009449,66926.0,66925.0,0.14431993]
[1718100330717,0.009449,66926.0,66919.0,0.149432]
[1718100330916,0.009449,66926.0,66920.0,0.23973512]
[1718100331130,0.009449,66926.0,66920.0,0.38683253]
[1718100331328,0.009449,66926.0,66925.0,0.14942]
[1718100331554,0.009449,66926.0,66925.0,0.33241679]
[1718100332420,0.009449,66926.0,66925.0,0.32986216]
[1718100333131,0.009449,66926.0,66925.0,0.7498146]
[1718100333264,0.009449,66926.0,66925.0,0.74976217]
[1718100334531,0.009449,66926.0,66925.0,0.74952651]
[1718100335267,0.009449,66926.0,66925.0,0.75952651]
[1718100335557,0.009449,66926.0,66925.0,1.92086751]
[1718100335746,0.009449,66926.0,66925.0,1.62202651]
[1718100336310,0.009449,66926.0,66925.0,1.92086751]
[1718100337113,0.009449,66926.0,66925.0,1.94386751]
[1718100337523,0.009449,66926.0,66925.0,1.95386751]
[1718100337750,0.009416,66936.0,66935.0,0.56935044]
[1718100337948,0.009416,66936.0,66935.0,1.64310241]
[1718100338156,0.009416,66936.0,66935.0,2.29669941]
[1718100338333,0.009416,66955.0,66945.0,0.41990092]
[1718100338334,0.018865,66954.0,66945.0,0.41990092]
[1718100338531,0.009416,66954.0,66945.0,2.25180085]
[1718100338744,0.009416,66954.0,66945.0,2.24180085]
[1718100338941,0.009416,66954.0,66953.0,0.56925892]
[1718100339143,0.009416,66954.0,66953.0,1.32627885]
[1718100339346,0.009416,66954.0,66953.0,1.60612481]
[1718100339543,0.009416,66954.0,66953.0,1.64010927]
[1718100339832,0.009416,66954.0,66953.0,1.97906263]
[1718100340029,0.009416,66954.0,66953.0,2.10990862]
[1718100340235,0.009416,66954.0,66953.0,2.14638256]
[1718100340437,0.009416,66954.0,66953.0,2.11863568]
[1718100340654,0.009416,66954.0,66953.0,2.08216174]
[1718100340792,0.009416,66954.0,66953.0,2.07216174]
[1718100340995,0.009416,66954.0,66953.0,1.75044474]
[1718100341653,0.009416,66954.0,66953.0,2.12763256]
[1718100341761,0.009416,66954.0,66953.0,2.07216174]
[1718100342408,0.009416,66954.0,66953.0,2.08216174]
[1718100343821,0.009416,66954.0,66953.0,2.15997006]
[1718100344113,0.136,67002.0,66975.0,0.6678254]
[1718100344363,0.136,67002.0,66975.0,0.90325835]
[1718100344536,0.009449,66988.0,66975.0,0.99339166]
[1718100344751,0.43295979,67012.0,66992.0,0.149271]
[1718100344971,0.43295979,67012.0,66992.0,1.59233781]
[1718100345166,0.43295979,67012.0,66992.0,1.67134144]
[1718100345379,0.43295979,67012.0,66992.0,1.77439796]
[1718100345578,0.43295979,67012.0,66992.0,1.75962902]
[1718100345898,0.43295979,67011.0,66992.0,2.06817202]
[1718100346106,0.43295979,67010.0,66992.0,2.06817202]
[1718100346321,0.00018013,67023.0,67020.0,0.54915748]
[1718100346532,0.00018013,67023.0,67020.0,0.71337581]
[1718100346736,0.00018013,67023.0,67020.0,0.78471339]
[1718100346971,0.00018013,67023.0,67020.0,0.41560599]
[1718100347188,0.3031,67020.0,67009.0,0.1]
[1718100347406,0.07215996,67010.0,67007.0,0.04928114]
[1718100347630,0.452333,67009.0,67007.0,0.04928114]
[1718100347834,0.452333,67009.0,66999.0,0.0999478]
[1718100347835,0.1454,67008.0,66999.0,0.0999478]
[1718100348046,0.1454,67008.0,67002.0,0.0999478]
[1718100348261,0.1454,67008.0,67003.0,0.09896111]
[1718100348262,0.02412043,67007.0,67003.0,0.09896111]
[1718100348464,0.02412043,67007.0,67004.0,0.24328104]
[1718100348729,0.02412043,67007.0,67006.0,0.09896111]
[1718100348949,0.02412043,67007.0,67006.0,0.24328104]
[1718100349156,0.07915421,67012.0,67011.0,0.19890959]
[1718100349372,0.07915421,67012.0,67011.0,0.09891361]
[1718100349585,0.08855922,67021.0,67017.0,0.09891361]
[1718100349792,0.08855922,67021.0,67020.0,0.09891361]
[1718100349793,0.00940501,67021.0,67020.0,0.09891361]
[1718100350020,0.00940501,67021.0,67020.0,0.58986127]
[1718100350229,0.00940501,67021.0,67020.0,0.58750537]
[1718100350439,0.00940501,67021.0,67020.0,0.60740377]
[1718100350705,0.00840501,67021.0,67020.0,0.73040377]
[1718100350907,0.00018013,67023.0,67022.0,0.41876049]
[1718100351122,0.0133456,67032.0,67031.0,0.1590824]
[1718100351326,0.0133456,67032.0,67031.0,0.81226442]
[1718100351533,0.0133456,67032.0,67031.0,0.83526442]
[1718100351729,0.0133456,67032.0,67031.0,1.33866442]
[1718100351984,0.0133456,67032.0,67031.0,1.35298471]
[1718100352181,0.00943801,67034.0,67033.0,0.56794049]
[1718100352390,0.00943801,67034.0,67033.0,0.83526042]
[1718100352606,0.00943801,67034.0,67033.0,0.81226042]
[1718100352805,0.00943801,67034.0,67033.0,0.79236202]
[1718100353008,0.00943801,67034.0,67033.0,0.81226042]
[1718100353224,0.00943801,67034.0,67033.0,0.88711791]
[1718100353453,0.00943801,67034.0,67033.0,0.90701631]
[1718100353687,0.00943801,67034.0,67033.0,0.93001631]
[1718100354225,0.00943801,67034.0,67033.0,2.00517631]
[1718100354461,0.000946,67055.0,67054.0,1.19556049]
[1718100354672,0.000946,67055.0,67054.0,1.14745147]
[1718100354888,0.000946,67055.0,67054.0,0.67765147]
[1718100355112,0.000946,67055.0,67054.0,0.71221342]
[1718100355317,0.000946,67055.0,67054.0,0.83521342]
[1718100355318,0.00079679,67055.0,67054.0,0.83521342]
[1718100355742,0.00079679,67055.0,67054.0,0.84521342]
[1718100355936,0.00079679,67055.0,67054.0,0.9093792]
[1718100356143,0.00079679,67055.0,67054.0,0.9193792]
[1718100356353,0.00079679,67055.0,67054.0,0.9836341]
[1718100356552,0.00079679,67055.0,67054.0,1.24541834]
[1718100356759,0.0497168,67081.0,67079.0,0.2]
[1718100356968,0.0497168,67081.0,67080.0,0.24323354]
[1718100357175,0.16520501,67089.0,67080.0,0.24323354]
[1718100357379,0.16520501,67089.0,67088.0,0.0662533]
[1718100357600,0.00940501,67089.0,67088.0,0.11176182]
[1718100358853,0.00940501,67089.0,67088.0,0.14431993]
[1718100359332,0.00940501,67089.0,67088.0,0.31327533]
[1718100359574,0.00940501,67089.0,67088.0,0.33627533]
[1718100359795,0.00940501,67089.0,67088.0,0.03828359]
[1718100359996,0.00940501,67089.0,67080.0,0.149074]
[1718100360231,0.00940501,67089.0,67071.0,0.1]
[1718100360232,0.07215996,67088.0,67076.0,0.0198984]
[1718100360458,0.07215996,67088.0,67060.0,0.0198984]
[1718100360459,0.07215996,67081.0,67060.0,0.0198984]
[1718100360668,0.07215996,67081.0,67048.0,0.3012]
[1718100360669,0.07215996,67068.0,67048.0,0.3012]
[1718100360902,0.461,67067.0,67049.0,0.18855747]
[1718100361110,0.07215996,67061.0,67049.0,0.13654923]
[1718100361995,0.07215996,67061.0,67041.0,0.01432029]
[1718100361996,0.07215996,67053.0,67044.0,0.0198984]
[1718100362244,0.07215996,67053.0,67032.0,0.0198984]
[1718100362245,0.07215996,67046.0,67032.0,0.0198984]
[1718100362467,0.06715996,67053.0,67029.0,0.0198984]
[1718100362681,0.06715996,67053.0,67016.0,0.4825]
[1718100362682,0.149163,67041.0,67024.0,0.0198984]
[1718100362884,0.07215996,67036.0,67023.0,0.0198984]
[1718100363111,0.1558,67042.0,67027.0,0.01]
[1718100363326,0.04983039,67037.0,67028.0,0.18064016]
[1718100363543,0.04983039,67037.0,67013.0,0.3019]
[1718100363544,0.07215996,67033.0,67023.0,0.0198984]
[1718100363769,0.04983039,67037.0,67023.0,0.14431993]
[1718100363770,0.39855996,67032.0,67023.0,0.14431993]
[1718100363980,0.34281993,67032.0,67024.0,0.16421833]
[1718100364194,0.34281993,67032.0,67030.0,0.0198984]
[1718100364195,0.02141993,67032.0,67030.0,0.0198984]
[1718100364412,0.02141993,67032.0,67024.0,0.0198984]
[1718100364619,0.04983039,67037.0,67031.0,0.0198984]
[1718100364871,0.04483039,67037.0,67032.0,0.14431993]
[1718100365077,0.04483039,67037.0,67031.0,0.0198984]
[1718100365078,0.04483039,67037.0,67023.0,0.0198984]
[1718100365292,0.07215996,67034.0,67023.0,0.16123017]
[1718100365506,0.22133796,67034.0,67023.0,0.16421833]
[1718100365722,0.149163,67041.0,67027.0,0.0198984]
[1718100365927,0.04942471,67037.0,67028.0,0.14431993]
[1718100366172,0.04942471,67037.0,67035.0,0.0198984]
[1718100366402,0.04442471,67037.0,67036.0,0.0198984]
[1718100366636,0.6095,67050.0,67039.0,0.0198984]
[1718100366857,0.6095,67050.0,67040.0,0.14431993]
[1718100367302,0.07215996,67046.0,67032.0,0.0198984]
[1718100367538,0.07215996,67046.0,67021.0,0.1]
[1718100367539,0.6045,67050.0,67040.0,0.01]
[1718100367748,0.67665996,67050.0,67040.0,0.16421833]
[1718100367976,0.67665996,67050.0,67024.0,0.1]
[1718100367977,0.07215996,67042.0,67024.0,0.1198984]
[1718100368193,0.07215996,67041.0,67027.0,0.0198984]
[1718100368399,0.07215996,67041.0,67025.0,0.14431993]
[1718100368400,0.149164,67040.0,67028.0,0.14431993]
[1718100368604,0.149164,67040.0,67026.0,0.0198984]
[1718100368605,0.144164,67040.0,67026.0,0.0198984]
[1718100368807,0.144164,67040.0,67027.0,0.14431993]
[1718100369005,0.144164,67040.0,67028.0,0.01366287]
[1718100369234,0.149168,67039.0,67027.0,0.14431993]
[1718100369438,0.22132796,67039.0,67025.0,0.0198984]
[1718100369655,0.04996794,67040.0,67032.0,0.0198984]
[1718100369858,0.04996794,67040.0,67032.0,0.16421833]
[1718100369859,0.04496794,67040.0,67032.0,0.16421833]
[1718100370073,0.04496794,67040.0,67037.0,0.0198984]
[1718100370279,0.6045,67050.0,67038.0,0.01642183]
[1718100370712,0.6045,67050.0,67033.0,0.14431993]
[1718100370713,0.07215996,67047.0,67033.0,0.14431993]
[1718100370919,0.07215996,67047.0,67025.0,0.0198984]
[1718100371123,0.22132596,67039.0,67026.0,0.14431993]
[1718100371268,0.149166,67039.0,67026.0,0.14431993]
[1718100371671,0.149166,67039.0,67026.0,0.16421833]
[1718100371880,0.149166,67039.0,67027.0,0.04134223]
[1718100372083,0.04972432,67040.0,67030.0,0.0198984]
[1718100372308,0.04972432,67040.0,67032.0,0.0198984]
[1718100372546,0.04972432,67040.0,67039.0,0.0198984]
[1718100372751,0.9679,67051.0,67040.0,0.0198984]
[1718100372958,0.30945927,67050.0,67036.0,0.0198984]
[1718100373168,0.07215996,67047.0,67028.0,0.0198984]
[1718100373376,0.149159,67043.0,67029.0,0.14431993]
[1718100373585,0.30945841,67046.0,67029.0,0.14431993]
[1718100373586,0.4679,67051.0,67037.0,0.0198984]
[1718100373833,0.30946306,67050.0,67038.0,0.14431993]
[1718100374035,0.30946306,67050.0,67038.0,0.16421833]
[1718100374288,0.30946306,67049.0,67044.0,0.0198984]
[1718100374469,0.30946306,67049.0,67038.0,0.16074176]
[1718100374470,0.30944038,67048.0,67046.0,0.0198984]
[1718100374689,0.04956692,67051.0,67046.0,0.14431993]
[1718100374846,0.04956692,67051.0,67046.0,0.16421833]
[1718100375075,0.1558,67059.0,67050.0,0.0198984]
[1718100375443,0.30941473,67058.0,67047.0,0.14431993]
[1718100375644,0.30941473,67057.0,67048.0,0.03133733]
[1718100375858,0.30941473,67056.0,67048.0,0.03133733]
[1718100376099,0.30941473,67055.0,67048.0,0.05123573]
[1718100376345,0.04947876,67060.0,67044.0,0.0198984]
[1718100376346,0.30941473,67054.0,67044.0,0.0198984]
[1718100376572,0.04947876,67060.0,67045.0,0.19112427]
[1718100376573,0.30941473,67053.0,67045.0,0.19112427]
[1718100376843,0.30941473,67052.0,67045.0,0.17122587]
[1718100377080,0.30941473,67051.0,67046.0,0.0198984]
[1718100377322,0.30941473,67050.0,67047.0,0.14431993]
[1718100377557,0.19859876,67060.0,67047.0,0.14431993]
[1718100377782,0.30941892,67059.0,67048.0,0.03402813]
[1718100378029,0.30941892,67058.0,67048.0,0.05392653]
[1718100378254,0.30941859,67057.0,67048.0,0.05392653]
[1718100378465,0.30941859,67056.0,67048.0,0.05392653]
[1718100378695,0.30941859,67055.0,67053.0,0.0198984]
[1718100378958,0.04947876,67060.0,67054.0,0.01642183]
[1718100379176,0.07215996,67054.0,67042.0,0.00017955]
[1718100379408,0.07215996,67064.0,67042.0,0.00017955]
[1718100379409,0.30938754,67053.0,67042.0,0.00017955]
[1718100379625,0.30938754,67052.0,67043.0,0.01856678]
[1718100379849,0.30938754,67051.0,67043.0,0.01856678]
[1718100380071,0.07215996,67047.0,67042.0,0.00017955]
[1718100380334,0.79658754,67046.0,67042.0,0.00017955]
[1718100380546,0.30938754,67045.0,67042.0,0.00017955]
[1718100380750,0.30938754,67044.0,67042.0,0.00017955]
[1718100380940,0.30938754,67043.0,67042.0,0.00017955]
[1718100381151,0.80938754,67043.0,67042.0,0.00017955]
[1718100381462,0.95854554,67043.0,67027.0,0.149192]
[1718100381687,0.95854554,67043.0,67020.0,0.3059]
[1718100381688,0.30938754,67042.0,67032.0,0.0198984]
[1718100381909,0.30938754,67041.0,67034.0,0.0198984]
[1718100382112,0.30938754,67040.0,67035.0,0.14431993]
[1718100382315,0.30938754,67039.0,67037.0,0.1690674]
[1718100382611,0.30938754,67038.0,67035.0,0.14431993]
[1718100382814,0.30938754,67037.0,67035.0,0.14431993]
[1718100383044,0.30938754,67036.0,67035.0,0.14431993]
[1718100383238,0.30938754,67036.0,67035.0,0.34274342]
[1718100383447,0.30938754,67036.0,67035.0,0.17367002]
[1718100383799,0.30938754,67036.0,67035.0,0.19356842]
[1718100384648,0.30938754,67036.0,67035.0,0.34274342]
[1718100384827,0.04944793,67049.0,67044.0,0.0198984]
[1718100385029,0.30945725,67048.0,67043.0,0.0198984]
[1718100385233,0.30945725,67047.0,67043.0,0.0198984]
[1718100385475,0.30945725,67046.0,67042.0,0.0198984]
[1718100385667,0.30945725,67045.0,67042.0,0.0198984]
[1718100385823,0.30945725,67045.0,67043.0,0.16421833]
[1718100385824,0.30945725,67044.0,67043.0,0.16421833]
[1718100386028,0.30945725,67044.0,67043.0,0.31337633]
[1718100386229,0.30945725,67044.0,67043.0,0.32979816]
[1718100386813,0.04991419,67057.0,67056.0,0.0198984]
[1718100387028,0.35932313,67057.0,67055.0,0.0198984]
[1718100387229,0.35932313,67057.0,67045.0,0.149151]
[1718100387230,0.30940894,67056.0,67045.0,0.149151]
[1718100387429,0.02078286,67057.0,67049.0,0.0198984]
[1718100387430,0.30940894,67055.0,67049.0,0.0198984]
[1718100387639,0.30940894,67054.0,67053.0,0.0198984]
[1718100387843,0.3301918,67054.0,67053.0,0.31335333]
[1718100388262,0.02078286,67054.0,67053.0,0.31335333]
[1718100388638,0.04991648,67068.0,67060.0,0.0198984]
[1718100388844,0.04991648,67068.0,67061.0,0.16421833]
[1718100388845,0.30934952,67067.0,67061.0,0.16421833]
[1718100389058,0.30934952,67066.0,67062.0,0.05123233]
[1718100389246,0.38150948,67065.0,67063.0,0.14431993]
[1718100389499,0.149126,67058.0,67045.0,0.0198984]
[1718100389664,0.30934952,67057.0,67049.0,0.0198984]
[1718100389870,0.30934952,67056.0,67050.0,0.0198984]
[1718100390042,0.30934952,67055.0,67049.0,0.16421833]
[1718100390244,0.30934952,67054.0,67049.0,0.16421833]
[1718100390457,0.02078286,67055.0,67035.0,0.0198984]
[1718100390458,0.07215996,67050.0,67035.0,0.0198984]
[1718100390653,0.149152,67046.0,67036.0,0.14431993]
[1718100390864,0.07215996,67043.0,67036.0,0.14431993]
[1718100391065,0.30934952,67042.0,67036.0,0.14431993]
[1718100391269,0.30947151,67041.0,67036.0,0.17566016]
[1718100391872,0.33025437,67040.0,67036.0,0.03134023]
[1718100392070,0.02078286,67040.0,67036.0,0.03134023]
[1718100392309,0.02078286,67040.0,67031.0,0.149184]
[1718100392526,0.149153,67045.0,67032.0,0.14431993]
[1718100392675,0.30946706,67044.0,67032.0,0.16421833]
[1718100392907,0.02078286,67039.0,67032.0,0.16421833]
[1718100393109,0.07215996,67042.0,67029.0,0.0198984]
[1718100393308,0.38162938,67041.0,67024.0,0.0198984]
[1718100393532,0.30946942,67040.0,67021.0,0.0198984]
[1718100393735,0.149182,67032.0,67022.0,0.14431993]
[1718100393934,0.149182,67032.0,67023.0,0.0198984]
[1718100394256,0.08095478,67041.0,67024.0,0.22882248]
[1718100394471,0.30950206,67040.0,67028.0,0.01714088]
[1718100394692,0.07215996,67033.0,67020.0,0.01714088]
[1718100394900,0.07215996,67033.0,67015.0,0.01714088]
[1718100394901,0.149189,67029.0,67015.0,0.01714088]
[1718100395106,0.149189,67029.0,67011.0,0.633828]
[1718100395107,0.30950206,67028.0,67019.0,0.01714088]
[1718100395314,0.02069271,67028.0,67019.0,0.01714088]
[1718100395519,0.02069271,67028.0,67020.0,0.16146081]
[1718100395774,0.04924052,67029.0,67020.0,0.16146081]
[1718100395987,0.84990326,67039.0,67021.0,0.16146081]
[1718100395988,0.02069271,67027.0,67021.0,0.16146081]
[1718100396227,0.8064,67039.0,67021.0,0.31066581]
[1718100396228,0.5497784,67039.0,67021.0,0.31066581]
[1718100396452,0.5497784,67039.0,67027.0,0.149191]
[1718100396453,0.43045687,67038.0,67027.0,0.149191]
[1718100396699,0.30952361,67037.0,67032.0,0.01714088]
[1718100396929,0.02069271,67038.0,67036.0,0.01714088]
[1718100397147,0.0497784,67039.0,67038.0,0.01714088]
[1718100397352,0.04404917,67057.0,67044.0,0.16629588]
[1718100397566,0.309436,67056.0,67045.0,0.16094952]
[1718100397779,0.04940642,67052.0,67048.0,0.01714088]
[1718100397995,0.04940642,67052.0,67049.0,0.14431993]
[1718100398217,0.07215996,67058.0,67049.0,0.14431993]